bitfinex-derivatives/quotes_BTCF0:USTF0_20241223
["timestamp","ask_amount","ask_price","bid_price","bid_amount"]
[1734938346906,0.052715,94931.0,94930.0,0.002]
[1734938347304,0.052715,94931.0,94929.0,0.002]
[1734938347608,0.3608,94934.0,94932.0,0.052713]
[1734938349607,0.3608,94934.0,94932.0,0.053713]
[1734938349912,0.3608,94934.0,94932.0,0.001]
[1734938350108,0.413513,94934.0,94932.0,0.001]
[1734938350603,0.3608,94934.0,94933.0,0.052713]
[1734938354609,0.3608,94934.0,94925.0,0.01145256]
[1734938354909,0.052715,94929.0,94923.0,0.052718]
[1734938355213,0.052715,94929.0,94924.0,0.052718]
[1734938355416,0.2316,94933.0,94924.0,0.052718]
[1734938355803,0.052716,94928.0,94921.0,0.32322995]
[1734938356009,0.3608,94924.0,94921.0,0.32322995]
[1734938356201,0.052719,94922.0,94921.0,0.31225063]
[1734938357317,0.05272,94920.0,94915.0,0.00158026]
[1734938357516,0.3608,94916.0,94915.0,0.00158026]
[1734938359208,0.36091233,94916.0,94904.0,0.09522063]
[1734938359403,0.052731,94901.0,94900.0,0.08387263]
[1734938359619,0.3608,94901.0,94884.0,0.24868849]
[1734938359820,0.77434,94885.0,94883.0,0.24796849]
[1734938360414,0.77434,94885.0,94877.0,0.50415632]
[1734938360415,0.052744,94878.0,94877.0,0.50415632]
[1734938360617,0.052747,94871.0,94870.0,0.45895882]
[1734938360815,0.413547,94871.0,94870.0,0.45815882]
[1734938361019,0.3608,94871.0,94870.0,0.45815882]
[1734938361217,0.36092277,94871.0,94870.0,0.51090682]
[1734938361732,0.36140001,94885.0,94884.0,0.05274]
[1734938361916,0.3608,94885.0,94884.0,0.05274]
[1734938362713,0.36089387,94885.0,94884.0,0.05274]
[1734938363623,0.36189387,94885.0,94884.0,0.05274]
[1734938363914,0.36289387,94885.0,94884.0,0.05474]
[1734938364424,0.00109387,94885.0,94884.0,0.05474]
[1734938364616,0.00109387,94885.0,94883.0,0.08969113]
[1734938364922,9.387e-05,94885.0,94883.0,0.08969113]
[1734938365122,0.00109387,94885.0,94884.0,0.002]
[1734938365925,0.00109387,94885.0,94884.0,0.05474]
[1734938366822,0.00109387,94885.0,94884.0,0.05274]
[1734938367423,9.387e-05,94885.0,94884.0,0.05274]
[1734938369821,0.00109387,94885.0,94884.0,0.05274]
[1734938370429,0.00209387,94885.0,94884.0,0.05274]
[1734938372021,0.00109387,94885.0,94884.0,0.05274]
[1734938373724,9.387e-05,94885.0,94884.0,0.05274]
[1734938373931,0.00109387,94885.0,94884.0,0.05274]
[1734938374239,0.00109387,94885.0,94883.0,0.08969113]
[1734938374528,0.00109387,94885.0,94883.0,0.14243113]
[1734938383730,0.05383387,94885.0,94882.0,0.3608]
[1734938385536,0.052741,94883.0,94881.0,0.06370248]
[1734938385730,0.052741,94883.0,94881.0,0.052742]
[1734938386439,0.17787916,94882.0,94876.0,0.3608]
[1734938386933,0.17787916,94882.0,94876.0,0.413544]
[1734938387335,0.12513716,94880.0,94876.0,0.3608]
[1734938388135,0.052744,94877.0,94876.0,0.3608]
[1734938388331,0.052744,94877.0,94873.0,0.052746]
[1734938388332,0.3608,94877.0,94873.0,0.052746]
[1734938388645,0.052746,94875.0,94873.0,0.052746]
[1734938391637,0.053746,94875.0,94873.0,0.052746]
[1734938392848,0.21016745,94875.0,94873.0,0.052746]
[1734938393944,0.15742145,94875.0,94873.0,0.052746]
[1734938395047,0.001,94875.0,94874.0,0.3636]
[1734938395843,0.001,94875.0,94873.0,0.052746]
[1734938396245,0.001,94875.0,94874.0,0.052745]
[1734938396840,0.15742145,94875.0,94874.0,0.052745]
[1734938397236,0.052747,94872.0,94871.0,0.01115088]
[1734938397443,0.15742145,94875.0,94872.0,0.052747]
[1734938398047,0.001,94875.0,94872.0,0.052747]
[1734938398240,0.15642145,94876.0,94861.0,0.124]
[1734938398439,0.002,94872.0,94861.0,0.124]
[1734938398650,0.002,94872.0,94871.0,0.052747]
[1734938398847,0.001,94872.0,94871.0,0.052747]
[1734938401346,0.001,94872.0,94865.0,0.05275]
[1734938401543,0.052749,94870.0,94866.0,0.05275]
[1734938402045,0.052749,94870.0,94864.0,0.01124243]
[1734938402046,0.052749,94870.0,94867.0,0.052749]
[1734938402245,0.002,94872.0,94861.0,0.124]
[1734938402451,0.15642145,94874.0,94873.0,0.052746]
[1734938403241,0.36089387,94885.0,94866.0,0.3608]
[1734938403242,0.12569711,94875.0,94874.0,0.052746]
[1734938403952,0.17844211,94875.0,94866.0,0.41355]
[1734938404457,0.001,94870.0,94866.0,0.41355]
[1734938404659,0.001,94870.0,94868.0,0.052749]
[1734938404954,0.001,94872.0,94871.0,0.052747]
[1734938405155,0.002,94875.0,94866.0,0.3608]
[1734938405355,0.002,94875.0,94873.0,0.052746]
[1734938405655,0.001,94875.0,94873.0,0.052746]
[1734938405851,0.12669711,94875.0,94873.0,0.413546]
[1734938406055,0.12569711,94875.0,94873.0,0.413546]
[1734938406358,0.12569711,94875.0,94866.0,0.05275]
[1734938406555,0.17844211,94876.0,94866.0,0.05275]
[1734938406759,0.17844211,94876.0,94863.0,0.15795222]
[1734938407058,0.17844211,94876.0,94862.0,0.3608]
[1734938407059,0.17844211,94876.0,94867.0,0.052749]
[1734938407252,0.052746,94874.0,94867.0,0.052749]
[1734938407452,0.09434731,94869.0,94867.0,0.052749]
[1734938408456,0.12769711,94874.0,94873.0,0.052746]
[1734938408661,0.12769711,94874.0,94873.0,0.413546]
[1734938409254,0.12569711,94874.0,94873.0,0.413546]
[1734938409556,0.12569711,94879.0,94878.0,0.052744]
[1734938410547,9.387e-05,94885.0,94884.0,0.05274]
[1734938411854,9.387e-05,94885.0,94884.0,0.06366467]
[1734938419661,8.7e-07,94885.0,94884.0,0.06366467]
[1734938421973,0.15642145,94911.0,94910.0,0.052726]
[1734938422959,8.399e-05,94911.0,94910.0,0.052726]
[1734938423158,8.399e-05,94911.0,94903.0,0.1265]
[1734938423367,0.00408399,94911.0,94910.0,0.052726]
[1734938424159,0.00708399,94911.0,94910.0,0.413526]
[1734938424468,0.01008399,94911.0,94910.0,0.413526]
[1734938425260,0.00308399,94911.0,94910.0,0.416526]
[1734938425565,0.00408399,94911.0,94910.0,0.416526]
[1734938426766,0.00108399,94911.0,94910.0,0.418526]
[1734938426960,0.36488992,94949.0,94910.0,0.82355094]
[1734938426961,0.15642145,94937.0,94910.0,0.82355094]
[1734938427262,0.15642145,94937.0,94936.0,0.052711]
[1734938427467,0.052715,94931.0,94922.0,0.3608]
[1734938427859,0.1209,94930.0,94922.0,0.3608]
[1734938428058,0.00010503,94929.0,94922.0,0.3608]
[1734938428765,0.00010503,94929.0,94910.0,0.3608]
[1734938428766,0.052719,94923.0,94911.0,0.052725]
[1734938428968,0.052719,94923.0,94911.0,0.0634183]
[1734938429278,0.052719,94923.0,94922.0,0.002]
[1734938430173,0.052719,94923.0,94922.0,0.003]
[1734938430375,0.052719,94923.0,94911.0,0.0106933]
[1734938430376,0.052719,94923.0,94898.0,0.052732]
[1734938430377,0.352719,94923.0,94898.0,0.052732]
[1734938430672,0.052729,94904.0,94898.0,0.052732]
[1734938431170,0.2329,94903.0,94898.0,0.052732]
[1734938431369,0.36140001,94910.0,94898.0,0.01086991]
[1734938431568,0.3608,94910.0,94908.0,0.052727]
[1734938433467,0.3618,94910.0,94908.0,0.052727]
[1734938434063,0.3608,94910.0,94908.0,0.052727]
[1734938434263,0.15733186,94920.0,94902.0,0.3608]
[1734938434466,0.15733186,94920.0,94918.0,0.052721]
[1734938435080,0.15733186,94920.0,94908.0,0.002]
[1734938435264,0.3608,94915.0,94908.0,0.002]
[1734938435677,0.3608,94915.0,94904.0,0.052729]
[1734938436176,0.413523,94915.0,94904.0,0.052729]
[1734938436478,0.413523,94915.0,94908.0,0.002]
[1734938437071,0.414523,94915.0,94904.0,0.054729]
[1734938437272,0.414523,94915.0,94904.0,0.055729]
[1734938437575,0.414523,94915.0,94905.0,0.052728]
[1734938437767,0.42517818,94915.0,94905.0,0.052728]
[1734938438276,0.42517818,94915.0,94908.0,0.001]
[1734938438869,0.42417818,94915.0,94908.0,0.001]
[1734938439076,0.42417818,94915.0,94908.0,0.003]
[1734938439971,0.52878704,94915.0,94908.0,0.002]
[1734938440183,0.052724,94913.0,94908.0,0.002]
[1734938440869,0.052724,94913.0,94908.0,0.003]
[1734938441571,0.15733186,94914.0,94910.0,0.052725]
[1734938441765,0.15733186,94914.0,94912.0,0.052725]
[1734938442680,0.00010503,94929.0,94912.0,0.052725]
[1734938442681,0.15733186,94918.0,94917.0,0.052722]
[1734938443676,0.00010503,94929.0,94928.0,0.052716]
[1734938444875,0.00010503,94929.0,94928.0,0.165116]
[1734938445791,0.00110503,94929.0,94928.0,0.165116]
[1734938448673,0.00110503,94929.0,94928.0,0.17601278]
[1734938448980,0.3608,94954.0,94952.0,0.052702]
[1734938450181,0.15733186,94962.0,94941.0,0.3608]
[1734938450383,0.15733186,94962.0,94960.0,0.052698]
[1734938450781,0.15733186,94962.0,94961.0,0.1119]
[1734938451481,0.413492,94972.0,94961.0,0.1119]
[1734938451675,0.001,94962.0,94961.0,0.1119]
[1734938452779,0.003,94962.0,94961.0,0.1119]
[1734938453378,0.004,94962.0,94961.0,0.1119]
[1734938454085,0.004,94962.0,94961.0,0.12272774]
[1734938461386,0.15733186,94978.0,94977.0,0.052689]
[1734938462189,0.3608,94990.0,94987.0,0.052683]
[1734938462882,0.37163802,94990.0,94987.0,0.052683]
[1734938463483,0.37163802,94990.0,94980.0,0.10619362]
[1734938464185,0.3758,94990.0,94989.0,0.052682]
[1734938464394,0.015,94990.0,94989.0,0.052682]
[1734938464777,0.015,94990.0,94989.0,0.15789859]
[1734938464984,0.1,95000.0,94989.0,0.57263217]
[1734938465185,0.3608,95020.0,95011.0,0.05267]
[1734938465381,0.1124,95034.0,95011.0,0.05267]
[1734938465382,0.01064757,95033.0,95011.0,0.05267]
[1734938465588,0.00060001,95032.0,95010.0,0.3608]
[1734938465783,0.01064757,95033.0,95022.0,0.10619362]
[1734938465987,0.1124,95034.0,95022.0,0.10619362]
[1734938466183,0.052657,95035.0,95022.0,0.10619362]
[1734938466494,0.052657,95035.0,95024.0,0.052662]
[1734938466690,0.2202646,95036.0,95022.0,0.10619362]
[1734938466893,0.001,95032.0,95030.0,0.052659]
[1734938467582,0.007,95034.0,95033.0,0.052658]
[1734938467781,0.004,95035.0,95033.0,0.052658]
[1734938468186,0.004,95035.0,95034.0,0.3608]
[1734938469095,0.004,95035.0,95033.0,0.052658]
[1734938469284,0.004,95035.0,95028.0,0.122]
[1734938469480,0.004,95032.0,95028.0,0.122]
[1734938469684,0.004,95032.0,95028.0,0.01072764]
[1734938469884,0.004,95032.0,95026.0,0.413461]
[1734938470186,0.013,95032.0,95030.0,0.001]
[1734938470384,0.009,95032.0,95030.0,0.001]
[1734938470986,0.3608,95039.0,95028.0,0.05366]
[1734938471193,0.3608,95039.0,95028.0,0.05266]
[1734938471382,0.3608,95039.0,95029.0,0.10619362]
[1734938471800,0.001,95032.0,95029.0,0.10619362]
[1734938471987,0.001,95032.0,95028.0,0.05266]
[1734938472389,0.1126,95048.0,95028.0,0.05266]
[1734938472595,0.052651,95045.0,95038.0,0.10619362]
[1734938472798,0.1126,95048.0,95038.0,0.10619362]
[1734938472995,0.48567628,95058.0,95038.0,0.21238724]
[1734938473201,0.48567628,95058.0,95048.0,0.10619362]
[1734938473589,0.48567628,95058.0,95051.0,0.052647]
[1734938473790,0.3608,95058.0,95051.0,0.052647]
[1734938474501,0.3638,95058.0,95051.0,0.052647]
[1734938475001,0.052646,95055.0,95048.0,0.10619362]
[1734938475200,0.052646,95055.0,95051.0,0.001]
[1734938475597,0.37340001,95058.0,95051.0,0.001]
[1734938475793,0.3698,95058.0,95051.0,0.001]
[1734938475989,0.3728,95058.0,95056.0,0.052645]
[1734938476390,0.012,95058.0,95056.0,0.052645]
[1734938476602,0.009,95058.0,95056.0,0.052645]
[1734938477397,0.012,95058.0,95056.0,0.052645]
[1734938477704,0.012,95058.0,95051.0,0.01171376]
[1734938478298,0.003,95058.0,95051.0,0.01071376]
[1734938478496,0.009,95055.0,95051.0,0.001]
[1734938479104,0.008,95058.0,95051.0,0.001]
[1734938479796,0.008,95055.0,95051.0,0.001]
[1734938480200,0.052647,95053.0,95051.0,0.001]
[1734938481401,0.3608,95056.0,95046.0,0.05265]
[1734938481597,0.052647,95052.0,95051.0,0.001]
[1734938481809,0.3608,95056.0,95032.0,0.3608]
[1734938482002,0.3608,95056.0,95040.0,0.10619362]
[1734938482207,0.006,95053.0,95051.0,0.001]
[1734938482598,0.052647,95052.0,95051.0,0.001]
[1734938482798,0.052648,95051.0,95042.0,0.052652]
[1734938483102,0.006,95052.0,95034.0,0.052657]
[1734938483103,0.3608,95046.0,95034.0,0.052657]
[1734938483306,0.3608,95046.0,95032.0,0.01070615]
[1734938483307,0.3608,95037.0,95032.0,0.01070615]
[1734938483602,0.3608,95037.0,95018.0,0.052666]
[1734938483603,0.05266,95029.0,95018.0,0.052666]
[1734938484205,0.05266,95029.0,95016.0,0.1177]
[1734938484206,0.05266,95029.0,95022.0,0.01085425]
[1734938484401,0.3608,95037.0,95022.0,0.01085425]
[1734938484402,0.413456,95037.0,95028.0,0.05277924]
[1734938484704,0.3608,95037.0,95036.0,0.052656]
[1734938485005,0.1139,95045.0,95038.0,0.052654]
[1734938485311,0.1139,95045.0,95040.0,0.052654]
[1734938485312,0.12487628,95044.0,95040.0,0.052654]
[1734938485698,0.1139,95045.0,95040.0,0.052654]
[1734938486810,0.003,95044.0,95040.0,0.052654]
[1734938488401,0.12487628,95044.0,95040.0,0.052654]
[1734938489012,0.12487628,95044.0,95042.0,0.052652]
[1734938489608,0.12687628,95044.0,95043.0,0.1287]
[1734938489913,0.002,95044.0,95043.0,0.1287]
[1734938491607,0.12537525,95050.0,95043.0,0.1287]
[1734938491804,0.003,95044.0,95038.0,0.3608]
[1734938492107,0.003,95044.0,95042.0,0.052652]
[1734938492299,0.12537525,95050.0,95049.0,0.052649]
[1734938492501,0.41404101,95063.0,95049.0,0.052649]
[1734938492695,0.3608,95063.0,95053.0,0.10619362]
[1734938492904,0.052645,95057.0,95045.0,0.052651]
[1734938493112,0.3608,95063.0,95040.0,0.10619362]
[1734938493407,0.001,95044.0,95040.0,0.10619362]
[1734938493605,0.001,95044.0,95043.0,0.052652]
[1734938495212,0.178445,95057.0,95053.0,0.001]
[1734938495213,0.18734797,95055.0,95053.0,0.001]
[1734938495603,0.3608,95054.0,95053.0,0.001]
[1734938495805,0.3608,95054.0,95044.0,0.052651]
[1734938496003,0.3608,95054.0,95040.0,0.10619362]
[1734938496207,0.3608,95054.0,95047.0,0.05265]
[1734938496604,0.3608,95054.0,95053.0,0.001]
[1734938497205,0.3628,95054.0,95047.0,0.05265]
[1734938497414,0.3648,95054.0,95047.0,0.05265]
[1734938497807,0.052648,95051.0,95047.0,0.05265]
[1734938498003,0.05265,95046.0,95040.0,0.01076176]
[1734938498205,0.417446,95054.0,95043.0,0.052652]
[1734938498405,0.3648,95054.0,95043.0,0.052652]
[1734938498604,0.052647,95052.0,95043.0,0.052652]
[1734938499108,0.052647,95052.0,95038.0,0.3714133]
[1734938499314,0.052647,95052.0,95047.0,0.052649]
[1734938499713,0.05964954,95051.0,95047.0,0.052649]
[1734938500313,0.05964954,95051.0,95047.0,0.05265]
[1734938501113,0.05964954,95050.0,95047.0,0.05265]
[1734938502617,0.2487402,95049.0,95047.0,0.05265]
[1734938502912,0.2487402,95049.0,95039.0,0.052654]
[1734938503219,0.052652,95044.0,95039.0,0.052654]
[1734938503727,0.21023888,95041.0,95038.0,0.0106133]
[1734938503910,0.052656,95036.0,95034.0,0.052657]
[1734938504110,0.413456,95036.0,95034.0,0.052657]
[1734938504911,0.413456,95036.0,95020.0,0.46699362]
[1734938505117,0.05964954,95035.0,95020.0,0.46699362]
[1734938505315,0.05964954,95035.0,95029.0,0.052659]
[1734938505518,0.052658,95033.0,95029.0,0.052659]
[1734938506221,0.05964954,95035.0,95031.0,0.052659]
[1734938506420,0.15758396,95030.0,95028.0,0.00711924]
[1734938506714,0.15758396,95030.0,95029.0,0.05266]
[1734938506919,0.15758396,95030.0,95029.0,0.05466]
[1734938507516,0.15758396,95030.0,95029.0,0.05766]
[1734938507717,0.15758396,95033.0,95029.0,0.05766]
[1734938508221,0.15758396,95033.0,95029.0,0.05566]
[1734938509023,0.15758396,95034.0,95029.0,0.05266]
[1734938509222,0.15758396,95034.0,95029.0,0.05766]
[1734938509818,0.15758396,95034.0,95029.0,0.05566]
[1734938510010,0.052659,95031.0,95029.0,0.005]
[1734938510415,0.4803,95030.0,95029.0,0.005]
[1734938510924,0.3608,95030.0,95029.0,0.005]
[1734938511926,0.60943469,95030.0,95029.0,0.005]
[1734938512115,0.60943469,95030.0,95029.0,0.003]
[1734938512317,0.60943469,95030.0,95029.0,0.005]
[1734938513126,0.51832994,95030.0,95029.0,0.002]
[1734938513629,0.51832994,95030.0,95029.0,0.001]
[1734938514526,0.3608,95030.0,95029.0,0.001]
[1734938514722,0.3608,95030.0,95000.0,0.3608]
[1734938514723,0.052668,95014.0,95000.0,0.3608]
[1734938514920,0.3608,95021.0,95000.0,0.3608]
[1734938515224,0.4203236,95030.0,95029.0,0.05266]
[1734938515620,0.42044284,95030.0,95010.0,0.10619362]
[1734938515823,0.42144284,95030.0,95029.0,0.001]
[1734938516219,0.36191924,95030.0,95029.0,0.001]
[1734938517324,0.48784043,95030.0,95029.0,0.001]
[1734938517821,0.48784043,95030.0,95018.0,0.052666]
[1734938518027,0.64669305,95030.0,95029.0,0.001]
[1734938518227,0.54049943,95030.0,95029.0,0.001]
[1734938518830,0.41457824,95030.0,95029.0,0.001]
[1734938519523,0.41457824,95030.0,95021.0,0.052664]
[1734938519524,0.052663,95024.0,95021.0,0.052664]
[1734938520115,0.36251925,95030.0,95023.0,0.052663]
[1734938520321,0.36191924,95030.0,95026.0,0.052661]
[1734938520520,0.36091924,95030.0,95026.0,0.052661]
[1734938521330,0.36091924,95030.0,95029.0,0.001]
[1734938521529,0.41357824,95030.0,95029.0,0.001]
[1734938522024,0.36091924,95030.0,95029.0,0.05366]
[1734938522631,0.36091924,95030.0,95029.0,0.05266]
[1734938523434,0.36091924,95030.0,95029.0,0.05566]
[1734938524332,0.36091924,95030.0,95029.0,0.05766]
[1734938524631,0.00011924,95030.0,95029.0,0.05466]
[1734938524829,0.00011924,95030.0,95029.0,0.05766]
[1734938525029,0.00011924,95030.0,95029.0,0.05566]
[1734938525333,0.00011924,95030.0,95029.0,0.05866]
[1734938526031,0.00011924,95030.0,95029.0,0.05766]
[1734938526736,0.00011924,95030.0,95029.0,0.06854493]
[1734938527620,0.00011924,95030.0,95029.0,0.005]
[1734938528018,0.42591924,95030.0,95018.0,0.3114]
[1734938528224,0.413465,95019.0,95018.0,0.1157]
[1734938528523,0.413465,95019.0,95011.0,0.37368]
[1734938528524,0.052668,95014.0,95011.0,0.37368]
[1734938528728,0.413468,95014.0,95011.0,0.37368]
[1734938529230,0.052669,95012.0,95011.0,0.37368]
[1734938529436,0.052675,95002.0,94999.0,0.00064]
[1734938529633,0.3608,95000.0,94997.0,0.00012498]
[1734938530636,0.052676,94999.0,94997.0,0.00012498]
[1734938531027,0.052676,94999.0,94997.0,0.00412498]
[1734938532637,0.36240001,95000.0,94997.0,0.00812498]
[1734938532833,0.001,94999.0,94997.0,0.00812498]
[1734938533426,0.3618,94999.0,94997.0,0.00812498]
[1734938534346,0.3618,94999.0,94998.0,0.052677]
[1734938534536,0.001,94999.0,94998.0,0.052677]
[1734938535925,0.09445928,95004.0,94998.0,0.052677]
[1734938536132,0.001,94999.0,94998.0,0.060677]
[1734938537135,0.001,95004.0,95001.0,0.052675]
[1734938537733,0.001,95004.0,95002.0,0.052674]
[1734938538938,0.3608,95010.0,95007.0,0.052672]
[1734938540742,0.3618,95010.0,95007.0,0.056672]
[1734938541530,0.3618,95010.0,95008.0,0.052671]
[1734938541730,0.001,95010.0,95009.0,0.3608]
[1734938541944,0.001,95010.0,95009.0,0.4855]
[1734938542340,0.001,95010.0,95009.0,0.53817]
[1734938543145,0.001,95010.0,95009.0,0.54117]
[1734938543535,0.001,95010.0,95009.0,0.184371]
[1734938545140,0.09445928,95024.0,95009.0,0.1247]
[1734938545432,0.002,95010.0,95009.0,0.186371]
[1734938545842,0.002,95010.0,95009.0,0.547171]
[1734938546040,0.001,95010.0,95009.0,0.545171]
[1734938546238,0.09445928,95024.0,95023.0,0.052663]
[1734938546546,0.3608,95028.0,95025.0,0.052662]
[1734938546547,0.09445928,95026.0,95025.0,0.052662]
[1734938547639,0.3608,95028.0,95025.0,0.052662]
[1734938548543,0.3608,95028.0,95025.0,0.053662]
[1734938549047,0.3608,95028.0,95025.0,0.0645461]
[1734938549445,0.3608,95028.0,95025.0,0.0655461]
[1734938549748,0.3608,95028.0,95025.0,0.0645461]
[1734938549949,0.3608,95028.0,95025.0,0.0655461]
[1734938550543,0.3608,95028.0,95025.0,0.002]
[1734938550743,0.052661,95027.0,95025.0,0.002]
[1734938552250,0.052661,95027.0,95025.0,0.001]
[1734938552546,0.09445928,95026.0,95025.0,0.001]
[1734938553946,0.14712028,95026.0,95025.0,0.001]
[1734938555048,0.14712028,95026.0,95016.0,0.052667]
[1734938555049,0.09445928,95026.0,95016.0,0.052667]
[1734938555237,0.14712028,95026.0,95025.0,0.001]
[1734938555642,0.052661,95026.0,95025.0,0.001]
[1734938555955,0.001,95026.0,95025.0,0.001]
[1734938557337,0.001,95026.0,95017.0,0.052666]
[1734938557648,0.052662,95025.0,95017.0,0.052666]
[1734938558456,0.0954295,95026.0,95017.0,0.052666]
[1734938558756,0.052665,95019.0,95017.0,0.052666]
[1734938559150,0.052665,95019.0,95017.0,0.055666]
[1734938559349,0.052665,95019.0,95017.0,0.059666]
[1734938559755,0.052665,95019.0,95017.0,0.055666]
[1734938559947,0.052665,95019.0,95017.0,0.059666]
[1734938560349,0.052665,95019.0,95017.0,0.055666]
[1734938560647,0.052665,95019.0,95017.0,0.059666]
[1734938561361,0.052665,95019.0,95017.0,0.056666]
[1734938561665,0.052665,95019.0,95017.0,0.059666]
[1734938561950,0.0944295,95022.0,95017.0,0.007]
[1734938562157,0.0944295,95022.0,95020.0,0.052665]
[1734938563953,0.0944295,95021.0,95020.0,0.052665]
[1734938564259,0.0944295,95021.0,95020.0,0.055665]
[1734938564557,0.0944295,95021.0,95020.0,0.057665]
[1734938565753,0.36140001,95028.0,95026.0,0.052661]
[1734938565959,0.3608,95028.0,95027.0,0.1272]
[1734938567752,0.3608,95028.0,95027.0,0.1282]
[1734938570869,0.3608,95028.0,95027.0,0.13883109]
[1734938571868,0.4552295,95028.0,95027.0,0.13883109]
[1734938573247,0.3608,95028.0,95027.0,0.13883109]
[1734938573757,0.3608,95028.0,95027.0,0.01163109]
[1734938575054,0.3608,95028.0,95027.0,0.001]
[1734938576452,0.052661,95027.0,95016.0,0.052667]
[1734938576655,0.052664,95022.0,95016.0,0.052667]
[1734938577652,0.052664,95022.0,95016.0,0.0633584]
[1734938578057,0.37188319,95028.0,95016.0,0.052667]
[1734938578256,0.09462146,95017.0,95016.0,0.052667]
[1734938579462,0.052666,95019.0,95016.0,0.055667]
[1734938579663,0.052666,95019.0,95016.0,0.059667]
[1734938581457,0.052666,95019.0,95016.0,0.056667]
[1734938581662,0.052666,95019.0,95016.0,0.059667]
[1734938582059,0.12616195,95020.0,95019.0,0.052665]
[1734938582461,0.12616195,95020.0,95019.0,0.08898588]
[1734938582864,0.0946129,95023.0,95019.0,0.03632088]
[1734938583059,0.0946129,95023.0,95020.0,0.03632088]
[1734938583265,0.0946129,95023.0,95021.0,0.03632088]
[1734938583567,0.0946129,95023.0,95019.0,0.005]
[1734938583953,0.12616195,95027.0,95022.0,0.052664]
[1734938584265,0.12616195,95025.0,95023.0,0.052663]
[1734938585065,0.12616195,95025.0,95020.0,0.002]
[1734938585260,0.052663,95024.0,95020.0,0.002]
[1734938586159,0.3608,95025.0,95020.0,0.054665]
[1734938586361,0.12616195,95022.0,95020.0,0.052665]
[1734938586963,0.12616195,95022.0,95020.0,0.054665]
[1734938587469,0.12616195,95022.0,95020.0,0.052665]
[1734938587659,0.12616195,95022.0,95020.0,0.056665]
[1734938588569,0.12616195,95024.0,95020.0,0.056665]
[1734938589472,0.052663,95023.0,95020.0,0.056665]
[1734938589664,0.12616195,95022.0,95020.0,0.056665]
[1734938590866,0.12616195,95022.0,95020.0,0.054665]
[1734938591065,0.12616195,95022.0,95020.0,0.057665]
[1734938592977,0.12616195,95022.0,95020.0,0.054665]
[1734938593274,0.12616195,95022.0,95020.0,0.056665]
[1734938593575,0.12616195,95022.0,95020.0,0.054665]
[1734938593778,0.12616195,95022.0,95020.0,0.057665]
[1734938594274,0.12616195,95022.0,95020.0,0.054665]
[1734938594489,0.052662,95026.0,95020.0,0.054665]
[1734938594490,0.12616195,95024.0,95020.0,0.056665]
[1734938595279,0.413464,95022.0,95020.0,0.004]
[1734938595581,0.53962595,95022.0,95020.0,0.004]
[1734938596187,0.48696195,95022.0,95008.0,0.052671]
[1734938596387,0.1231,95021.0,95020.0,0.005]
[1734938597177,0.1231,95021.0,95020.0,0.003]
[1734938597781,0.175764,95021.0,95020.0,0.003]
[1734938597980,0.23744521,95021.0,95020.0,0.003]
[1734938598185,0.18478121,95021.0,95010.0,0.05267]
[1734938598381,0.052667,95016.0,95010.0,0.05267]
[1734938598592,0.18478121,95021.0,95010.0,0.05267]
[1734938598982,0.052669,95012.0,95010.0,0.05267]
[1734938599182,0.3608,95014.0,95008.0,0.01069495]
[1734938599494,0.052677,94998.0,94995.0,0.01071198]
[1734938599695,0.052677,94998.0,94990.0,0.03637883]
[1734938599696,0.413477,94998.0,94990.0,0.03637883]
[1734938599893,0.413477,94998.0,94989.0,0.052682]
[1734938600194,0.41359624,94998.0,94989.0,0.052682]
[1734938600395,0.41359624,94998.0,94986.0,0.118]
[1734938600892,0.052688,94978.0,94974.0,0.05269]
[1734938601092,0.052688,94978.0,94975.0,0.03635813]
[1734938601286,0.052688,94978.0,94974.0,0.06341869]
[1734938602281,0.3608,94980.0,94976.0,0.052689]
[1734938603189,0.002,94978.0,94976.0,0.052689]
[1734938603696,0.001,94978.0,94976.0,0.055689]
[1734938604002,0.415167,94980.0,94976.0,0.058689]
[1734938604199,0.414487,94980.0,94976.0,0.058689]
[1734938604494,0.413487,94980.0,94976.0,0.058689]
[1734938605194,0.3608,94980.0,94976.0,0.006]
[1734938605398,0.052688,94978.0,94976.0,0.006]
[1734938605598,0.052688,94978.0,94976.0,0.003]
[1734938606599,0.052688,94978.0,94974.0,0.01072869]
[1734938606896,0.053688,94978.0,94976.0,0.003]
[1734938607791,0.052688,94978.0,94976.0,0.003]
[1734938608195,0.3608,94980.0,94976.0,0.003]
[1734938608390,0.3608,94980.0,94979.0,0.052687]
[1734938609190,0.09460579,94991.0,94976.0,0.005]
[1734938609497,0.09460579,94991.0,94980.0,0.10619362]
[1734938609806,0.09460579,94991.0,94989.0,0.052682]
[1734938609991,0.09460579,94991.0,94990.0,0.2426]
[1734938610385,0.052678,94996.0,94990.0,0.2426]
[1734938610889,0.001,94991.0,94990.0,0.2426]
[1734938612398,0.052678,94996.0,94990.0,0.2476]
[1734938612899,0.052674,95003.0,94990.0,0.2476]
[1734938613492,0.45608579,95007.0,94996.0,0.052678]
[1734938613698,0.50875779,95007.0,94996.0,0.052678]
[1734938614300,0.414152,95007.0,94996.0,0.052678]
[1734938615404,0.36148,95007.0,94996.0,0.052678]
[1734938615593,0.00068,95007.0,94996.0,0.052678]
[1734938615796,0.3608,95009.0,95008.0,0.052671]
[1734938616100,0.05266,95029.0,95008.0,0.3608]
[1734938616302,0.05266,95029.0,95022.0,0.052663]
[1734938616498,0.05266,95029.0,95010.0,0.10619362]
[1734938616704,0.00012498,95028.0,95023.0,0.052663]
[1734938617199,0.00012498,95028.0,95010.0,0.10619362]
[1734938617395,0.00012498,95028.0,95026.0,0.052661]
[1734938617596,0.00012498,95028.0,95018.0,0.052665]